[Event "Titled Tuesday Blitz June 07 Early 2022"]
[White "Lagno, Kateryna"]
[Black "Shohat, Yotam"]
[WhiteFideId "14109336"]
[BlackFideId "2813955"]
[WhiteElo "2522"]
[BlackElo "2119"]
[Result "0-1"]
[Round "02"]
[TimeControl "180+1"]
[Date "2022.06.08"]
[WhiteClock "0:00:03"]
[BlackClock "0:00:06"]

1. e4 {[%clk 0:03:00]}  c5 {[%clk 0:02:59]} 2. Nf3 {[%clk 0:03:01]}  a6 {[%clk 0:02:58]} 3. c3 {[%clk 0:02:59]}  e6 {[%clk 0:02:58]} 4. d4 {[%clk 0:02:58]}  d5 {[%clk 0:02:58]} 5. e5 {[%clk 0:02:58]}  Bd7 {[%clk 0:02:56]} 6. Bd3 {[%clk 0:02:52]}  Bb5 {[%clk 0:02:55]} 7. Bxb5+ {[%clk 0:02:49]}  axb5 {[%clk 0:02:56]} 8. dxc5 {[%clk 0:02:49]}  Bxc5 {[%clk 0:02:52]} 9. b4 {[%clk 0:02:48]}  Bb6 {[%clk 0:02:48]} 10. Qd3 {[%clk 0:02:47]}  Qd7 {[%clk 0:02:42]} 11. Na3 {[%clk 0:02:47]}  Rxa3 {[%clk 0:02:24]} 12. Bxa3 {[%clk 0:02:46]}  Ne7 {[%clk 0:02:24]} 13. Bc1 {[%clk 0:02:43]}  O-O {[%clk 0:02:16]} 14. h4 {[%clk 0:02:38]}  Nbc6 {[%clk 0:02:03]} 15. Ng5 {[%clk 0:02:32]}  Nf5 {[%clk 0:01:31]} 16. Qe2 {[%clk 0:02:13]}  f6 {[%clk 0:01:26]} 17. exf6 {[%clk 0:02:12]}  Rxf6 {[%clk 0:01:25]} 18. Nf3 {[%clk 0:02:03]}  e5 {[%clk 0:01:21]} 19. Bg5 {[%clk 0:01:56]}  Rf8 {[%clk 0:01:20]} 20. Qxb5 {[%clk 0:01:48]}  e4 {[%clk 0:01:11]} 21. Qxb6 {[%clk 0:01:43]}  exf3 {[%clk 0:01:10]} 22. O-O-O {[%clk 0:01:41]}  fxg2 {[%clk 0:01:03]} 23. Rhg1 {[%clk 0:01:17]}  d4 {[%clk 0:00:57]} 24. b5 {[%clk 0:01:04]}  Ne5 {[%clk 0:00:53]} 25. Qc5 {[%clk 0:00:41]}  Nf3 {[%clk 0:00:39]} 26. Rxg2 {[%clk 0:00:40]}  Rc8 {[%clk 0:00:39]} 27. Qb4 {[%clk 0:00:39]}  Qd5 {[%clk 0:00:19]} 28. Qb3 {[%clk 0:00:10]}  Qxb3 {[%clk 0:00:19]} 29. axb3 {[%clk 0:00:11]}  Rxc3+ {[%clk 0:00:20]} 30. Kb2 {[%clk 0:00:11]}  h6 {[%clk 0:00:20]} 31. Bf4 {[%clk 0:00:09]}  N5xh4 {[%clk 0:00:18]} 32. Rg4 {[%clk 0:00:06]}  g5 {[%clk 0:00:18]} 33. Bg3 {[%clk 0:00:05]}  Nf5 {[%clk 0:00:16]} 34. Re4 {[%clk 0:00:05]}  Rc5 {[%clk 0:00:15]} 35. b6 {[%clk 0:00:04]}  h5 {[%clk 0:00:11]} 36. Bc7 {[%clk 0:00:04]}  g4 {[%clk 0:00:10]} 37. Re8+ {[%clk 0:00:05]}  Kf7 {[%clk 0:00:10]} 38. Rb8 {[%clk 0:00:05]}  Rb5 {[%clk 0:00:04]} 39. Rxb7 {[%clk 0:00:06]}  Ke6 {[%clk 0:00:04]} 40. Ra7 {[%clk 0:00:05]}  Kd7 {[%clk 0:00:04]} 41. Bf4+ {[%clk 0:00:03]}  Kc6 {[%clk 0:00:03]} 42. Bc7 {[%clk 0:00:01]}  d3 {[%clk 0:00:01]} 43. Rc1+ {[%clk 0:00:02]}  Kd5 {[%clk 0:00:01]} 44. Bf4 {[%clk 0:00:03]}  N5d4 {[%clk 0:00:02]} 45. b7 {[%clk 0:00:03]}  Rxb3+ {[%clk 0:00:02]} 46. Ka2 {[%clk 0:00:04]}  Rxb7 {[%clk 0:00:01]} 47. Rxb7 {[%clk 0:00:04]}  d2 {[%clk 0:00:02]} 48. Rd1 {[%clk 0:00:04]}  Ke4 {[%clk 0:00:02]} 49. Bxd2 {[%clk 0:00:04]}  Kd3 {[%clk 0:00:02]} 50. Be3+ {[%clk 0:00:04]}  Ke2 {[%clk 0:00:03]} 51. Rxd4 {[%clk 0:00:04]}  Nxd4 {[%clk 0:00:03]} 52. Bxd4 {[%clk 0:00:05]}  h4 {[%clk 0:00:04]} 53. Rh7 {[%clk 0:00:05]}  h3 {[%clk 0:00:04]} 54. Kb3 {[%clk 0:00:05]}  Kf3 {[%clk 0:00:04]} 55. Kc4 {[%clk 0:00:05]}  Kg2 {[%clk 0:00:05]} 56. Kd5 {[%clk 0:00:04]}  h2 {[%clk 0:00:04]} 57. Be5 {[%clk 0:00:05]}  h1=Q {[%clk 0:00:04]} 58. Rxh1 {[%clk 0:00:02]}  Kxh1 {[%clk 0:00:05]} 59. Bg3 {[%clk 0:00:03]}  Kg2 {[%clk 0:00:06]} 0-1


[Site "https://www.chess.com"]

[Event "Titled Tuesday Blitz June 07 Early 2022"]
[White "Lopez Idarraga, Daniel Eduardo"]
[Black "Atakhan, Abtin"]
[WhiteFideId "4405501"]
[BlackFideId "22502203"]
[WhiteElo "2050"]
[BlackElo "2087"]
[Result "0-1"]
[Round "02"]
[TimeControl "180+1"]
[Date "2022.06.08"]
[WhiteClock "0:00:05"]
[BlackClock "0:00:07"]

1. e4 {[%clk 0:03:00]}  c5 {[%clk 0:02:59]} 2. Nf3 {[%clk 0:02:59]}  Nc6 {[%clk 0:03:00]} 3. Bb5 {[%clk 0:02:58]}  e6 {[%clk 0:02:58]} 4. O-O {[%clk 0:02:58]}  Nge7 {[%clk 0:02:59]} 5. Re1 {[%clk 0:02:58]}  a6 {[%clk 0:02:59]} 6. Bf1 {[%clk 0:02:59]}  d5 {[%clk 0:02:58]} 7. exd5 {[%clk 0:03:00]}  Nxd5 {[%clk 0:02:58]} 8. d4 {[%clk 0:03:00]}  Nf6 {[%clk 0:02:59]} 9. Be3 {[%clk 0:02:59]}  cxd4 {[%clk 0:02:52]} 10. Nxd4 {[%clk 0:02:58]}  Bd7 {[%clk 0:02:52]} 11. Nc3 {[%clk 0:02:58]}  Be7 {[%clk 0:02:52]} 12. Qf3 {[%clk 0:02:56]}  O-O {[%clk 0:02:51]} 13. Rad1 {[%clk 0:02:55]}  Qa5 {[%clk 0:02:49]} 14. Nb3 {[%clk 0:02:54]}  Qc7 {[%clk 0:02:49]} 15. Bf4 {[%clk 0:02:53]}  Qc8 {[%clk 0:02:46]} 16. Na4 {[%clk 0:02:52]}  Qe8 {[%clk 0:02:35]} 17. Nb6 {[%clk 0:02:49]}  Ra7 {[%clk 0:02:32]} 18. Bg5 {[%clk 0:02:43]}  Nb8 {[%clk 0:02:25]} 19. Qe3 {[%clk 0:02:14]}  Ng4 {[%clk 0:02:21]} 20. Qf4 {[%clk 0:02:07]}  Nf6 {[%clk 0:02:10]} 21. Qe3 {[%clk 0:01:46]}  Ng4 {[%clk 0:02:09]} 22. Qf4 {[%clk 0:01:47]}  Nf6 {[%clk 0:02:08]} 23. Qc7 {[%clk 0:01:34]}  Bc6 {[%clk 0:01:51]} 24. Na5 {[%clk 0:01:31]}  Bd8 {[%clk 0:01:48]} 25. Rxd8 {[%clk 0:01:26]}  Qxd8 {[%clk 0:01:47]} 26. Qxd8 {[%clk 0:01:27]}  Rxd8 {[%clk 0:01:47]} 27. Be3 {[%clk 0:01:13]}  Be8 {[%clk 0:01:30]} 28. Nbc4 {[%clk 0:00:47]}  Ra8 {[%clk 0:01:21]} 29. Nxb7 {[%clk 0:00:47]}  Nc6 {[%clk 0:01:00]} 30. Nxd8 {[%clk 0:00:46]}  Rxd8 {[%clk 0:01:01]} 31. Bd3 {[%clk 0:00:43]}  Nb4 {[%clk 0:01:00]} 32. Rd1 {[%clk 0:00:38]}  Nxd3 {[%clk 0:00:55]} 33. Rxd3 {[%clk 0:00:39]}  Rxd3 {[%clk 0:00:55]} 34. cxd3 {[%clk 0:00:39]}  Bb5 {[%clk 0:00:53]} 35. Kf1 {[%clk 0:00:39]}  Nd5 {[%clk 0:00:51]} 36. Ke2 {[%clk 0:00:39]}  f6 {[%clk 0:00:38]} 37. Kd2 {[%clk 0:00:39]}  Bc6 {[%clk 0:00:25]} 38. g3 {[%clk 0:00:37]}  Kf7 {[%clk 0:00:24]} 39. Kc2 {[%clk 0:00:33]}  Nb4+ {[%clk 0:00:22]} 40. Kd2 {[%clk 0:00:22]}  e5 {[%clk 0:00:15]} 41. a3 {[%clk 0:00:21]}  Nd5 {[%clk 0:00:14]} 42. Kc2 {[%clk 0:00:19]}  Ba4+ {[%clk 0:00:13]} 43. b3 {[%clk 0:00:18]}  Bc6 {[%clk 0:00:13]} 44. Bd2 {[%clk 0:00:17]}  Ke6 {[%clk 0:00:13]} 45. a4 {[%clk 0:00:17]}  g5 {[%clk 0:00:12]} 46. Kb2 {[%clk 0:00:17]}  h5 {[%clk 0:00:12]} 47. Ka3 {[%clk 0:00:17]}  h4 {[%clk 0:00:12]} 48. b4 {[%clk 0:00:17]}  h3 {[%clk 0:00:12]} 49. Ne3 {[%clk 0:00:08]}  Be8 {[%clk 0:00:09]} 50. Nxd5 {[%clk 0:00:08]}  Kxd5 {[%clk 0:00:10]} 51. Be3 {[%clk 0:00:07]}  Bg6 {[%clk 0:00:09]} 52. b5 {[%clk 0:00:05]}  axb5 {[%clk 0:00:09]} 53. axb5 {[%clk 0:00:06]}  Bxd3 {[%clk 0:00:09]} 54. b6 {[%clk 0:00:07]}  Kc6 {[%clk 0:00:07]} 55. Kb4 {[%clk 0:00:07]}  f5 {[%clk 0:00:04]} 56. Bxg5 {[%clk 0:00:06]}  Kxb6 {[%clk 0:00:04]} 57. Kc3 {[%clk 0:00:07]}  Be4 {[%clk 0:00:04]} 58. Bf6 {[%clk 0:00:07]}  Kc5 {[%clk 0:00:03]} 59. Bxe5 {[%clk 0:00:07]}  Kd5 {[%clk 0:00:04]} 60. Bf4 {[%clk 0:00:08]}  Bf3 {[%clk 0:00:04]} 61. Be3 {[%clk 0:00:09]}  Bg4 {[%clk 0:00:05]} 62. Kb4 {[%clk 0:00:08]}  Ke4 {[%clk 0:00:06]} 63. Kc5 {[%clk 0:00:08]}  Kf3 {[%clk 0:00:06]} 64. Kd4 {[%clk 0:00:05]}  Kg2 {[%clk 0:00:07]} 0-1


[Site "https://www.chess.com"]

[Event "Titled Tuesday Blitz June 07 Early 2022"]
[White "Manukian, Artak"]
[Black "Babazada, Khazar"]
[WhiteFideId "13301373"]
[BlackFideId "13413554"]
[WhiteElo "2575"]
[BlackElo "2406"]
[Result "0-1"]
[Round "02"]
[TimeControl "180+1"]
[Date "2022.06.07"]
[WhiteClock "0:00:01"]
[BlackClock "0:00:07"]

1. e4 {[%clk 0:03:00]}  c5 {[%clk 0:02:57]} 2. Nf3 {[%clk 0:02:59]}  Nc6 {[%clk 0:02:57]} 3. c3 {[%clk 0:02:59]}  Nf6 {[%clk 0:02:51]} 4. e5 {[%clk 0:02:59]}  Nd5 {[%clk 0:02:51]} 5. d4 {[%clk 0:03:00]}  cxd4 {[%clk 0:02:50]} 6. cxd4 {[%clk 0:03:00]}  d6 {[%clk 0:02:49]} 7. Nc3 {[%clk 0:03:01]}  e6 {[%clk 0:02:45]} 8. Bd3 {[%clk 0:03:00]}  dxe5 {[%clk 0:02:29]} 9. dxe5 {[%clk 0:02:59]}  Bb4 {[%clk 0:02:29]} 10. Bd2 {[%clk 0:02:49]}  Nxc3 {[%clk 0:02:18]} 11. Bxc3 {[%clk 0:02:49]}  Bxc3+ {[%clk 0:02:17]} 12. bxc3 {[%clk 0:02:50]}  Qa5 {[%clk 0:02:17]} 13. O-O {[%clk 0:02:42]}  O-O {[%clk 0:02:13]} 14. Qe2 {[%clk 0:02:34]}  Qxc3 {[%clk 0:01:50]} 15. Rac1 {[%clk 0:02:07]}  Qa3 {[%clk 0:01:44]} 16. Qe4 {[%clk 0:01:43]}  g6 {[%clk 0:01:38]} 17. Bb1 {[%clk 0:01:29]}  Qe7 {[%clk 0:01:24]} 18. Qf4 {[%clk 0:01:26]}  Kg7 {[%clk 0:01:16]} 19. Ng5 {[%clk 0:01:01]}  Bd7 {[%clk 0:00:42]} 20. Ne4 {[%clk 0:00:55]}  Nd4 {[%clk 0:00:42]} 21. Qd2 {[%clk 0:00:42]}  Nf5 {[%clk 0:00:33]} 22. Nf6 {[%clk 0:00:31]}  Bc6 {[%clk 0:00:29]} 23. Bxf5 {[%clk 0:00:13]}  exf5 {[%clk 0:00:29]} 24. Rfe1 {[%clk 0:00:11]}  Rfd8 {[%clk 0:00:29]} 25. Qg5 {[%clk 0:00:10]}  Qe6 {[%clk 0:00:16]} 26. Nh5+ {[%clk 0:00:08]}  Kf8 {[%clk 0:00:14]} 27. Qh6+ {[%clk 0:00:07]}  Ke7 {[%clk 0:00:13]} 28. Qg5+ {[%clk 0:00:07]}  Kd7 {[%clk 0:00:09]} 29. Nf6+ {[%clk 0:00:07]}  Kc7 {[%clk 0:00:09]} 30. Nxh7 {[%clk 0:00:05]}  Rd4 {[%clk 0:00:08]} 31. Qf6 {[%clk 0:00:03]}  Rad8 {[%clk 0:00:07]} 32. Qxe6 {[%clk 0:00:03]}  fxe6 {[%clk 0:00:08]} 33. Ng5 {[%clk 0:00:03]}  Kd7 {[%clk 0:00:09]} 34. Red1 {[%clk 0:00:02]}  Ke7 {[%clk 0:00:09]} 35. Rxd4 {[%clk 0:00:02]}  Rxd4 {[%clk 0:00:10]} 36. g3 {[%clk 0:00:03]}  Rd2 {[%clk 0:00:10]} 37. a3 {[%clk 0:00:02]}  Ra2 {[%clk 0:00:11]} 38. h4 {[%clk 0:00:01]}  Rxa3 {[%clk 0:00:11]} 39. Nh3 {[%clk 0:00:01]}  a5 {[%clk 0:00:07]} 40. Nf4 {[%clk 0:00:02]}  Kf7 {[%clk 0:00:07]} 41. Rd1 {[%clk 0:00:01]}  a4 {[%clk 0:00:07]} 42. Rd6 {[%clk 0:00:01]}  Ra1+ {[%clk 0:00:07]} 0-1


[Site "https://www.chess.com"]

[Event "Titled Tuesday Blitz June 07 Early 2022"]
[White "Mikhailovsky, Vladimir"]
[Black "Namitbir Singh Walia"]
[WhiteFideId "34105414"]
[BlackFideId "35071068"]
[WhiteElo "2270"]
[BlackElo "1565"]
[Result "1/2-1/2"]
[Round "02"]
[TimeControl "180+1"]
[Date "2022.06.08"]
[WhiteClock "0:00:14"]
[BlackClock "0:00:04"]

1. d4 {[%clk 0:03:00]}  Nf6 {[%clk 0:02:58]} 2. c4 {[%clk 0:03:00]}  c5 {[%clk 0:02:57]} 3. Nf3 {[%clk 0:02:44]}  cxd4 {[%clk 0:02:56]} 4. Nxd4 {[%clk 0:02:45]}  Nc6 {[%clk 0:02:56]} 5. Nc3 {[%clk 0:02:45]}  g6 {[%clk 0:02:55]} 6. g3 {[%clk 0:02:44]}  Bg7 {[%clk 0:02:55]} 7. Bg2 {[%clk 0:02:45]}  O-O {[%clk 0:02:54]} 8. O-O {[%clk 0:02:45]}  Qb6 {[%clk 0:02:39]} 9. Nb3 {[%clk 0:02:41]}  d6 {[%clk 0:02:36]} 10. Bg5 {[%clk 0:02:36]}  Be6 {[%clk 0:02:15]} 11. Nd5 {[%clk 0:02:28]}  Bxd5 {[%clk 0:02:12]} 12. cxd5 {[%clk 0:02:29]}  Na5 {[%clk 0:01:59]} 13. Be3 {[%clk 0:02:20]}  Qa6 {[%clk 0:01:53]} 14. Bd4 {[%clk 0:02:14]}  Rfc8 {[%clk 0:01:48]} 15. Qd2 {[%clk 0:01:47]}  Nxb3 {[%clk 0:01:40]} 16. axb3 {[%clk 0:01:48]}  Qb5 {[%clk 0:01:41]} 17. b4 {[%clk 0:01:31]}  Rc4 {[%clk 0:01:31]} 18. Bc3 {[%clk 0:01:28]}  Ne4 {[%clk 0:01:23]} 19. Bxe4 {[%clk 0:01:28]}  Rxe4 {[%clk 0:01:23]} 20. e3 {[%clk 0:01:25]}  Rc4 {[%clk 0:01:17]} 21. Ra5 {[%clk 0:01:23]}  Qb6 {[%clk 0:01:13]} 22. Rfa1 {[%clk 0:01:23]}  a6 {[%clk 0:01:13]} 23. b5 {[%clk 0:01:21]}  Bxc3 {[%clk 0:01:00]} 24. bxc3 {[%clk 0:01:22]}  Rc5 {[%clk 0:00:43]} 25. Qd3 {[%clk 0:01:01]}  Rac8 {[%clk 0:00:38]} 26. c4 {[%clk 0:00:59]}  Rxc4 {[%clk 0:00:37]} 27. bxa6 {[%clk 0:00:59]}  bxa6 {[%clk 0:00:34]} 28. Rxa6 {[%clk 0:00:59]}  Rc1+ {[%clk 0:00:33]} 29. Kg2 {[%clk 0:00:57]}  Qb2 {[%clk 0:00:25]} 30. R1a2 {[%clk 0:00:52]}  Qb1 {[%clk 0:00:19]} 31. Qxb1 {[%clk 0:00:44]}  Rxb1 {[%clk 0:00:20]} 32. Ra7 {[%clk 0:00:44]}  Kf8 {[%clk 0:00:20]} 33. Ra8 {[%clk 0:00:37]}  Rxa8 {[%clk 0:00:19]} 34. Rxa8+ {[%clk 0:00:38]}  Kg7 {[%clk 0:00:20]} 35. Re8 {[%clk 0:00:34]}  Kf6 {[%clk 0:00:20]} 36. Rh8 {[%clk 0:00:33]}  h5 {[%clk 0:00:20]} 37. e4 {[%clk 0:00:32]}  Rb7 {[%clk 0:00:19]} 38. Rc8 {[%clk 0:00:32]}  Ke5 {[%clk 0:00:18]} 39. Rc4 {[%clk 0:00:32]}  Rb2 {[%clk 0:00:17]} 40. h3 {[%clk 0:00:32]}  e6 {[%clk 0:00:18]} 41. dxe6 {[%clk 0:00:31]}  fxe6 {[%clk 0:00:18]} 42. Kf3 {[%clk 0:00:31]}  Rb3+ {[%clk 0:00:18]} 43. Ke2 {[%clk 0:00:29]}  g5 {[%clk 0:00:18]} 44. Ra4 {[%clk 0:00:28]}  Rb2+ {[%clk 0:00:19]} 45. Ke3 {[%clk 0:00:29]}  Rb3+ {[%clk 0:00:19]} 46. Ke2 {[%clk 0:00:28]}  Rb2+ {[%clk 0:00:19]} 47. Kf3 {[%clk 0:00:29]}  Rb3+ {[%clk 0:00:19]} 48. Kg2 {[%clk 0:00:29]}  Rb5 {[%clk 0:00:19]} 49. Rc4 {[%clk 0:00:25]}  g4 {[%clk 0:00:18]} 50. hxg4 {[%clk 0:00:23]}  hxg4 {[%clk 0:00:19]} 51. Ra4 {[%clk 0:00:24]}  Rb2 {[%clk 0:00:19]} 52. Kf1 {[%clk 0:00:23]}  Rc2 {[%clk 0:00:19]} 53. Ke1 {[%clk 0:00:23]}  Rb2 {[%clk 0:00:19]} 54. Kf1 {[%clk 0:00:23]}  Rd2 {[%clk 0:00:15]} 55. Rc4 {[%clk 0:00:22]}  Rd4 {[%clk 0:00:15]} 56. Rc8 {[%clk 0:00:20]}  Rxe4 {[%clk 0:00:14]} 57. f3 {[%clk 0:00:16]}  gxf3 {[%clk 0:00:14]} 58. Kf2 {[%clk 0:00:17]}  Ra4 {[%clk 0:00:10]} 59. Kxf3 {[%clk 0:00:17]}  Ra3+ {[%clk 0:00:10]} 60. Kf2 {[%clk 0:00:17]}  d5 {[%clk 0:00:11]} 61. Rd8 {[%clk 0:00:15]}  Kd4 {[%clk 0:00:10]} 62. g4 {[%clk 0:00:15]}  e5 {[%clk 0:00:11]} 63. g5 {[%clk 0:00:16]}  Ra2+ {[%clk 0:00:10]} 64. Kg3 {[%clk 0:00:16]}  Ra1 {[%clk 0:00:09]} 65. Kg2 {[%clk 0:00:16]}  Ra6 {[%clk 0:00:07]} 66. Rg8 {[%clk 0:00:16]}  Ke4 {[%clk 0:00:07]} 67. g6 {[%clk 0:00:16]}  Kf5 {[%clk 0:00:07]} 68. g7 {[%clk 0:00:15]}  Rg6+ {[%clk 0:00:08]} 69. Kf3 {[%clk 0:00:15]}  Ke6 {[%clk 0:00:04]} 70. Re8+ {[%clk 0:00:14]}  Kf7 {[%clk 0:00:05]} 71. Rxe5 {[%clk 0:00:14]}  Kxg7 {[%clk 0:00:04]} 72. Rxd5 {[%clk 0:00:14]}  Rf6+ {[%clk 0:00:04]} 73. Ke4 {[%clk 0:00:14]} 1/2-1/2


[Site "https://www.chess.com"]

[Event "Titled Tuesday Blitz June 07 Early 2022"]
[White "Molina, Roberto Junio Brito"]
[Black "Ambartsumova, Karina"]
[WhiteFideId "2109450"]
[BlackFideId "4166299"]
[WhiteElo "2432"]
[BlackElo "2262"]
[Result "1-0"]
[Round "02"]
[TimeControl "180+1"]
[Date "2022.06.07"]
[WhiteClock "0:00:16"]
[BlackClock "0:00:08"]

1. d4 {[%clk 0:03:00]}  Nf6 {[%clk 0:02:59]} 2. c4 {[%clk 0:03:00]}  e6 {[%clk 0:02:59]} 3. Nf3 {[%clk 0:03:00]}  d5 {[%clk 0:02:59]} 4. Nc3 {[%clk 0:02:59]}  Bb4 {[%clk 0:02:58]} 5. Qa4+ {[%clk 0:02:56]}  Nc6 {[%clk 0:02:58]} 6. Bg5 {[%clk 0:02:56]}  h6 {[%clk 0:02:58]} 7. Bxf6 {[%clk 0:02:55]}  Qxf6 {[%clk 0:02:59]} 8. e3 {[%clk 0:02:55]}  O-O {[%clk 0:02:58]} 9. Rc1 {[%clk 0:02:55]}  Qg6 {[%clk 0:02:46]} 10. Qc2 {[%clk 0:02:53]}  Qxc2 {[%clk 0:02:39]} 11. Rxc2 {[%clk 0:02:54]}  a6 {[%clk 0:02:27]} 12. a3 {[%clk 0:02:48]}  Bxc3+ {[%clk 0:02:23]} 13. Rxc3 {[%clk 0:02:37]}  Re8 {[%clk 0:02:21]} 14. Be2 {[%clk 0:02:34]}  Bd7 {[%clk 0:02:00]} 15. O-O {[%clk 0:02:31]}  dxc4 {[%clk 0:01:38]} 16. Rxc4 {[%clk 0:02:27]}  Rac8 {[%clk 0:01:22]} 17. Rfc1 {[%clk 0:02:26]}  Re7 {[%clk 0:01:15]} 18. b4 {[%clk 0:02:22]}  Be8 {[%clk 0:01:11]} 19. Rc5 {[%clk 0:02:19]}  Kf8 {[%clk 0:01:05]} 20. Bd3 {[%clk 0:02:07]}  Nb8 {[%clk 0:00:53]} 21. Be4 {[%clk 0:00:56]}  c6 {[%clk 0:00:48]} 22. R5c3 {[%clk 0:00:53]}  Nd7 {[%clk 0:00:37]} 23. Nd2 {[%clk 0:00:53]}  Nb6 {[%clk 0:00:33]} 24. Nb3 {[%clk 0:00:52]}  Rd8 {[%clk 0:00:25]} 25. Nc5 {[%clk 0:00:51]}  Nc8 {[%clk 0:00:18]} 26. f4 {[%clk 0:00:50]}  f6 {[%clk 0:00:17]} 27. Kf2 {[%clk 0:00:50]}  Nd6 {[%clk 0:00:17]} 28. Bd3 {[%clk 0:00:49]}  e5 {[%clk 0:00:17]} 29. dxe5 {[%clk 0:00:47]}  fxe5 {[%clk 0:00:18]} 30. g3 {[%clk 0:00:47]}  exf4 {[%clk 0:00:17]} 31. gxf4 {[%clk 0:00:46]}  Bf7 {[%clk 0:00:16]} 32. Kf3 {[%clk 0:00:19]}  Rde8 {[%clk 0:00:16]} 33. Re1 {[%clk 0:00:17]}  Bd5+ {[%clk 0:00:11]} 34. e4 {[%clk 0:00:17]}  b6 {[%clk 0:00:11]} 35. Nxa6 {[%clk 0:00:17]}  Nxe4 {[%clk 0:00:11]} 36. Bxe4 {[%clk 0:00:16]}  Rxe4 {[%clk 0:00:09]} 37. Rxe4 {[%clk 0:00:16]}  Bxe4+ {[%clk 0:00:10]} 38. Kf2 {[%clk 0:00:16]}  Ra8 {[%clk 0:00:09]} 39. Nc7 {[%clk 0:00:16]}  Bh1 {[%clk 0:00:08]} 40. Nxa8 {[%clk 0:00:16]} 1-0


[Site "https://www.chess.com"]

[Event "Titled Tuesday Blitz June 07 Early 2022"]
[White "Pajeken, Jakob Leon"]
[Black "Svane, Frederik"]
[WhiteFideId "12942839"]
[BlackFideId "12923044"]
[WhiteElo "2475"]
[BlackElo "2459"]
[Result "0-1"]
[Round "02"]
[TimeControl "180+1"]
[Date "2022.06.07"]
[WhiteClock "0:00:20"]
[BlackClock "0:00:33"]

1. Nf3 {[%clk 0:02:59]}  c5 {[%clk 0:02:59]} 2. e4 {[%clk 0:02:58]}  e6 {[%clk 0:02:58]} 3. d4 {[%clk 0:02:57]}  cxd4 {[%clk 0:02:59]} 4. Nxd4 {[%clk 0:02:58]}  Nc6 {[%clk 0:02:59]} 5. Nc3 {[%clk 0:02:58]}  a6 {[%clk 0:03:00]} 6. Be2 {[%clk 0:02:57]}  d6 {[%clk 0:03:00]} 7. Be3 {[%clk 0:02:56]}  Nf6 {[%clk 0:03:00]} 8. f4 {[%clk 0:02:55]}  Bd7 {[%clk 0:02:59]} 9. g4 {[%clk 0:02:53]}  d5 {[%clk 0:02:53]} 10. e5 {[%clk 0:02:47]}  Ne4 {[%clk 0:02:51]} 11. Nxe4 {[%clk 0:02:47]}  dxe4 {[%clk 0:02:50]} 12. h4 {[%clk 0:02:44]}  Qb6 {[%clk 0:02:38]} 13. Qd2 {[%clk 0:02:13]}  Qxb2 {[%clk 0:02:24]} 14. O-O {[%clk 0:01:37]}  Bb4 {[%clk 0:02:23]} 15. Qc1 {[%clk 0:01:33]}  Qxc1 {[%clk 0:01:42]} 16. Rfxc1 {[%clk 0:01:34]}  Bc3 {[%clk 0:01:39]} 17. Nxc6 {[%clk 0:01:29]}  Bxa1 {[%clk 0:01:36]} 18. Na5 {[%clk 0:01:27]}  Bc3 {[%clk 0:01:35]} 19. Nxb7 {[%clk 0:01:26]}  O-O {[%clk 0:01:34]} 20. Nd6 {[%clk 0:01:24]}  Bc6 {[%clk 0:01:27]} 21. Rb1 {[%clk 0:01:20]}  Rfb8 {[%clk 0:01:27]} 22. Rxb8+ {[%clk 0:01:20]}  Rxb8 {[%clk 0:01:27]} 23. Bxa6 {[%clk 0:01:20]}  Ra8 {[%clk 0:01:25]} 24. Bc4 {[%clk 0:01:19]}  Bd5 {[%clk 0:01:24]} 25. Bb3 {[%clk 0:01:17]}  Bxb3 {[%clk 0:01:22]} 26. axb3 {[%clk 0:01:18]}  Ra2 {[%clk 0:01:18]} 27. Nxe4 {[%clk 0:01:18]}  Rxc2 {[%clk 0:01:17]} 28. Bc5 {[%clk 0:01:11]}  Be1 {[%clk 0:01:09]} 29. h5 {[%clk 0:01:02]}  Rb2 {[%clk 0:01:02]} 30. h6 {[%clk 0:00:54]}  Rxb3 {[%clk 0:00:59]} 31. hxg7 {[%clk 0:00:52]}  Kxg7 {[%clk 0:01:00]} 32. f5 {[%clk 0:00:49]}  Bg3 {[%clk 0:00:43]} 33. Ng5 {[%clk 0:00:39]}  h6 {[%clk 0:00:35]} 34. fxe6 {[%clk 0:00:20]}  hxg5 {[%clk 0:00:33]} 35. e7 {[%clk 0:00:21]}  Rb8 {[%clk 0:00:34]} 36. Bd6 {[%clk 0:00:21]}  Re8 {[%clk 0:00:33]} 37. Kg2 {[%clk 0:00:21]}  Bf4 {[%clk 0:00:33]} 38. Kf3 {[%clk 0:00:22]}  f6 {[%clk 0:00:33]} 39. Ke4 {[%clk 0:00:19]}  Bxe5 {[%clk 0:00:32]} 40. Bc5 {[%clk 0:00:19]}  Kf7 {[%clk 0:00:32]} 41. Kf5 {[%clk 0:00:20]}  Rxe7 {[%clk 0:00:32]} 42. Bxe7 {[%clk 0:00:20]}  Kxe7 {[%clk 0:00:33]} 0-1


[Site "https://www.chess.com"]

[Event "Titled Tuesday Blitz June 07 Early 2022"]
[White "Perez Gormaz, Matias"]
[Black "Lazavik, Denis"]
[WhiteFideId "3406342"]
[BlackFideId "13515110"]
[WhiteElo "2341"]
[BlackElo "2437"]
[Result "0-1"]
[Round "02"]
[TimeControl "180+1"]
[Date "2022.06.07"]
[WhiteClock "0:00:03"]
[BlackClock "0:01:30"]

1. Nf3 {[%clk 0:03:00]}  f5 {[%clk 0:02:58]} 2. d3 {[%clk 0:03:00]}  Nc6 {[%clk 0:02:57]} 3. d4 {[%clk 0:02:58]}  e6 {[%clk 0:02:55]} 4. c4 {[%clk 0:02:56]}  Nf6 {[%clk 0:02:55]} 5. a3 {[%clk 0:02:53]}  g6 {[%clk 0:02:50]} 6. d5 {[%clk 0:02:47]}  exd5 {[%clk 0:02:38]} 7. cxd5 {[%clk 0:02:47]}  Ne7 {[%clk 0:02:38]} 8. d6 {[%clk 0:02:47]}  cxd6 {[%clk 0:02:36]} 9. Nc3 {[%clk 0:02:46]}  Bg7 {[%clk 0:02:34]} 10. g3 {[%clk 0:02:40]}  d5 {[%clk 0:02:30]} 11. Bg2 {[%clk 0:02:40]}  O-O {[%clk 0:02:30]} 12. O-O {[%clk 0:02:40]}  d6 {[%clk 0:02:30]} 13. Nd4 {[%clk 0:02:39]}  Kh8 {[%clk 0:02:18]} 14. Bg5 {[%clk 0:02:29]}  Ne4 {[%clk 0:02:15]} 15. Bxe7 {[%clk 0:01:49]}  Qxe7 {[%clk 0:02:14]} 16. Nxd5 {[%clk 0:01:39]}  Qe5 {[%clk 0:02:06]} 17. Nc7 {[%clk 0:01:21]}  Rb8 {[%clk 0:01:47]} 18. e3 {[%clk 0:01:19]}  Bd7 {[%clk 0:01:46]} 19. Rc1 {[%clk 0:01:14]}  Rbc8 {[%clk 0:01:42]} 20. Qb3 {[%clk 0:00:22]}  Nc5 {[%clk 0:01:36]} 21. Rxc5 {[%clk 0:00:18]}  dxc5 {[%clk 0:01:35]} 22. Nde6 {[%clk 0:00:03]}  Bxe6 {[%clk 0:01:30]} 23. Nxe6 {[%clk 0:00:03]}  c4 {[%clk 0:01:30]} 0-1


[Site "https://www.chess.com"]